[Event "Late-Titled-Tuesday-Blitz-April-02-2024"]
[Site "Chess.com"]
[Date "2024.04.02"]
[Round "3"]
[White "Squirlolz"]
[Black "Felix-Rose"]
[Result "1-0"]
[WhiteElo "2586"]
[BlackElo "2336"]
[TimeControl "180+1"]
[EndTime "14:28:03 PDT"]
[Termination "Squirlolz won by checkmate"]

1. e4 {[%clk 0:03:00.9]} 1... e5 {[%clk 0:02:58.5]} 2. Nf3 {[%clk 0:02:59.9]}
2... Nc6 {[%clk 0:02:58.7]} 3. Bc4 {[%clk 0:03:00.1]} 3... Nf6 {[%clk 0:02:57]}
4. d3 {[%clk 0:02:59.4]} 4... Bc5 {[%clk 0:02:56.8]} 5. O-O {[%clk 0:02:59.5]}
5... d6 {[%clk 0:02:57]} 6. Be3 {[%clk 0:02:59.5]} 6... Bb6 {[%clk 0:02:51.5]}
7. Nbd2 {[%clk 0:02:56.7]} 7... h6 {[%clk 0:02:45.6]} 8. c3 {[%clk 0:02:56.5]}
8... Ne7 {[%clk 0:02:42.1]} 9. d4 {[%clk 0:02:56.4]} 9... Ng6 {[%clk 0:02:42.1]}
10. Re1 {[%clk 0:02:46.9]} 10... O-O {[%clk 0:02:40.8]} 11. a4 {[%clk 0:02:46]}
11... c6 {[%clk 0:02:37.4]} 12. Nf1 {[%clk 0:02:43.6]} 12... Nxe4 {[%clk
0:02:06.5]} 13. dxe5 {[%clk 0:02:42.2]} 13... Bxe3 {[%clk 0:01:42.4]} 14. Rxe3
{[%clk 0:02:33.6]} 14... d5 {[%clk 0:01:42.4]} 15. Bd3 {[%clk 0:02:32.9]} 15...
Ng5 {[%clk 0:01:36.4]} 16. Nd4 {[%clk 0:01:50.8]} 16... Qc7 {[%clk 0:01:19.3]}
17. e6 {[%clk 0:01:44.2]} 17... Nf4 {[%clk 0:00:20.1]} 18. exf7+ {[%clk
0:01:28.7]} 18... Qxf7 {[%clk 0:00:20.1]} 19. Ng3 {[%clk 0:01:20.9]} 19... Nxd3
{[%clk 0:00:18.7]} 20. Qxd3 {[%clk 0:01:21.8]} 20... Qxf2+ {[%clk 0:00:18.9]}
21. Kh1 {[%clk 0:01:22.6]} 21... Bd7 {[%clk 0:00:16.9]} 22. Re2 {[%clk
0:01:14.5]} 22... Qf6 {[%clk 0:00:15.9]} 23. a5 {[%clk 0:01:06.4]} 23... a6
{[%clk 0:00:15.6]} 24. b4 {[%clk 0:01:04.2]} 24... Rae8 {[%clk 0:00:16.1]} 25.
Rae1 {[%clk 0:01:04.5]} 25... Rxe2 {[%clk 0:00:16.1]} 26. Qxe2 {[%clk
0:01:03.7]} 26... Re8 {[%clk 0:00:11.9]} 27. Qd1 {[%clk 0:01:04.1]} 27... Rxe1+
{[%clk 0:00:12.1]} 28. Qxe1 {[%clk 0:01:05]} 28... Kh7 {[%clk 0:00:11.8]} 29. h3
{[%clk 0:01:02]} 29... g6 {[%clk 0:00:11.9]} 30. Qe3 {[%clk 0:00:58.1]} 30... h5
{[%clk 0:00:11.3]} 31. h4 {[%clk 0:00:52.6]} 31... Ne4 {[%clk 0:00:11.7]} 32.
Nxe4 {[%clk 0:00:48.1]} 32... Qxh4+ {[%clk 0:00:12.3]} 33. Kg1 {[%clk
0:00:48.2]} 33... Qxe4 {[%clk 0:00:12.5]} 34. Qg3 {[%clk 0:00:46]} 34... Bf5
{[%clk 0:00:12.4]} 35. Qc7+ {[%clk 0:00:45.3]} 35... Kh6 {[%clk 0:00:12.9]} 36.
Qd8 {[%clk 0:00:44.1]} 36... Qe1+ {[%clk 0:00:12.9]} 37. Kh2 {[%clk 0:00:44.4]}
37... Qxc3 {[%clk 0:00:12.9]} 38. Qh8+ {[%clk 0:00:42.5]} 38... Kg5 {[%clk
0:00:11.7]} 39. Nf3+ {[%clk 0:00:42.5]} 39... Qxf3 {[%clk 0:00:07.9]} 40. gxf3
{[%clk 0:00:43.4]} 40... Kf4 {[%clk 0:00:06.8]} 41. Kg2 {[%clk 0:00:40.8]} 41...
Ke3 {[%clk 0:00:06]} 42. Qe5+ {[%clk 0:00:39.9]} 42... Kd3 {[%clk 0:00:04.8]}
43. Qc7 {[%clk 0:00:40.1]} 43... d4 {[%clk 0:00:05.1]} 44. Qxb7 {[%clk
0:00:39.8]} 44... Kc3 {[%clk 0:00:05.8]} 45. Qxc6+ {[%clk 0:00:39.3]} 45... Kxb4
{[%clk 0:00:06.6]} 46. Qxa6 {[%clk 0:00:39.6]} 46... Kc3 {[%clk 0:00:06.8]} 47.
Qc6+ {[%clk 0:00:39.1]} 47... Kd2 {[%clk 0:00:07.5]} 48. a6 {[%clk 0:00:38.6]}
48... d3 {[%clk 0:00:08.4]} 49. a7 {[%clk 0:00:38.8]} 49... Ke1 {[%clk
0:00:09.2]} 50. a8=Q {[%clk 0:00:34.7]} 50... d2 {[%clk 0:00:09.3]} 51. Qa5
{[%clk 0:00:34.3]} 51... h4 {[%clk 0:00:07.9]} 52. Qd6 {[%clk 0:00:32.3]} 52...
h3+ {[%clk 0:00:07.5]} 53. Kg3 {[%clk 0:00:32.2]} 53... Kf1 {[%clk 0:00:08]} 54.
Qdxd2 {[%clk 0:00:31.7]} 54... h2 {[%clk 0:00:07.4]} 55. Qe1# {[%clk 0:00:31.7]}
1-0

[Event "Late-Titled-Tuesday-Blitz-April-02-2024"]
[Site "Chess.com"]
[Date "2024.04.02"]
[Round "3"]
[White "tgpgoat"]
[Black "GMAkobianSTL"]
[Result "1/2-1/2"]
[WhiteElo "2442"]
[BlackElo "2763"]
[TimeControl "180+1"]
[EndTime "14:28:06 PDT"]
[Termination "Game drawn by repetition"]

1. Nf3 {[%clk 0:03:00.9]} 1... Nf6 {[%clk 0:02:57.5]} 2. g3 {[%clk 0:03:00.3]}
2... d5 {[%clk 0:02:57.4]} 3. Bg2 {[%clk 0:03:00.7]} 3... c6 {[%clk 0:02:57.5]}
4. O-O {[%clk 0:03:01.2]} 4... Bg4 {[%clk 0:02:57.9]} 5. d4 {[%clk 0:03:01.4]}
5... e6 {[%clk 0:02:57.2]} 6. Ne5 {[%clk 0:03:02]} 6... Bh5 {[%clk 0:02:56.8]}
7. c4 {[%clk 0:03:02.4]} 7... Nbd7 {[%clk 0:02:57]} 8. Nc3 {[%clk 0:03:02.5]}
8... Bd6 {[%clk 0:02:55.3]} 9. Bf4 {[%clk 0:03:01.7]} 9... Qb8 {[%clk 0:02:55]}
10. cxd5 {[%clk 0:02:59.8]} 10... exd5 {[%clk 0:02:54.1]} 11. Qb3 {[%clk
0:02:58.8]} 11... O-O {[%clk 0:02:52.6]} 12. Rac1 {[%clk 0:02:54.1]} 12... Nxe5
{[%clk 0:02:43.1]} 13. dxe5 {[%clk 0:02:55]} 13... Bxe5 {[%clk 0:02:43.4]} 14.
Bxe5 {[%clk 0:02:55.3]} 14... Qxe5 {[%clk 0:02:43.1]} 15. Qxb7 {[%clk
0:02:55.6]} 15... Rfc8 {[%clk 0:02:42]} 16. e4 {[%clk 0:02:32.5]} 16... dxe4
{[%clk 0:02:34.7]} 17. Rfe1 {[%clk 0:02:32.5]} 17... Bg6 {[%clk 0:02:30.1]} 18.
Rcd1 {[%clk 0:02:15.7]} 18... a5 {[%clk 0:02:24]} 19. Qb3 {[%clk 0:02:01.3]}
19... Rab8 {[%clk 0:02:15.2]} 20. Qc4 {[%clk 0:02:01.6]} 20... Rb4 {[%clk
0:02:04.7]} 21. Qa6 {[%clk 0:01:57.4]} 21... Rcb8 {[%clk 0:01:52.4]} 22. Qxc6
{[%clk 0:01:50.8]} 22... Rxb2 {[%clk 0:01:51.7]} 23. Nxe4 {[%clk 0:01:46.3]}
23... Rxa2 {[%clk 0:01:38.8]} 24. Nxf6+ {[%clk 0:01:38.7]} 24... gxf6 {[%clk
0:01:37]} 25. Rxe5 {[%clk 0:01:37]} 25... fxe5 {[%clk 0:01:37]} 26. Qc7 {[%clk
0:01:29.9]} 26... Re8 {[%clk 0:01:29.6]} 27. Bc6 {[%clk 0:01:21.2]} 27... Rc2
{[%clk 0:01:21.8]} 28. Qb7 {[%clk 0:01:03.2]} 28... Re6 {[%clk 0:01:14.2]} 29.
Be4 {[%clk 0:01:00.7]} 29... Re2 {[%clk 0:01:00.5]} 30. Bxg6 {[%clk 0:00:58.4]}
30... hxg6 {[%clk 0:00:58.8]} 31. Qa8+ {[%clk 0:00:58]} 31... Kg7 {[%clk
0:00:58]} 32. Qxa5 {[%clk 0:00:58.5]} 32... Rf6 {[%clk 0:00:55.9]} 33. Qc5
{[%clk 0:00:57.5]} 33... e4 {[%clk 0:00:53.6]} 34. Qd4 {[%clk 0:00:57.1]} 34...
g5 {[%clk 0:00:53]} 35. Rd2 {[%clk 0:00:55.2]} 35... Rxd2 {[%clk 0:00:52.4]} 36.
Qxd2 {[%clk 0:00:54.9]} 36... Kg6 {[%clk 0:00:52.9]} 37. Qe3 {[%clk 0:00:54.2]}
37... Re6 {[%clk 0:00:52.9]} 38. Kg2 {[%clk 0:00:54.4]} 38... f5 {[%clk
0:00:50.4]} 39. Qa7 {[%clk 0:00:53.9]} 39... f4 {[%clk 0:00:49.5]} 40. Qd7
{[%clk 0:00:50.4]} 40... Kf6 {[%clk 0:00:48.7]} 41. Qd8+ {[%clk 0:00:48.2]}
41... Kg6 {[%clk 0:00:48.1]} 42. Qg8+ {[%clk 0:00:45.5]} 42... Kf6 {[%clk
0:00:48.3]} 43. Qf8+ {[%clk 0:00:45.5]} 43... Ke5 {[%clk 0:00:48.5]} 44. Qg7+
{[%clk 0:00:43.3]} 44... Kf5 {[%clk 0:00:48.6]} 45. g4+ {[%clk 0:00:30]} 45...
Kxg4 {[%clk 0:00:46.5]} 46. Qd7 {[%clk 0:00:27.6]} 46... Kf5 {[%clk 0:00:46]}
47. Qd5+ {[%clk 0:00:26.6]} 47... Kf6 {[%clk 0:00:46]} 48. Qd4+ {[%clk
0:00:25.8]} 48... Kf5 {[%clk 0:00:46]} 49. h3 {[%clk 0:00:25.1]} 49... e3 {[%clk
0:00:45]} 50. Qd3+ {[%clk 0:00:23.8]} 50... Kf6 {[%clk 0:00:44.5]} 51. Qd8+
{[%clk 0:00:19.8]} 51... Kg6 {[%clk 0:00:41.6]} 52. Qg8+ {[%clk 0:00:19]} 52...
Kf6 {[%clk 0:00:41.8]} 53. Qf8+ {[%clk 0:00:16.5]} 53... Kg6 {[%clk 0:00:41.3]}
54. fxe3 {[%clk 0:00:13.2]} 54... fxe3 {[%clk 0:00:40.7]} 55. Qg8+ {[%clk
0:00:11.5]} 55... Kf6 {[%clk 0:00:40.8]} 56. Kf1 {[%clk 0:00:09.3]} 56... e2+
{[%clk 0:00:40.6]} 57. Ke1 {[%clk 0:00:09.7]} 57... Re4 {[%clk 0:00:39.4]} 58.
Qf8+ {[%clk 0:00:06.5]} 58... Ke5 {[%clk 0:00:39.2]} 59. Qf2 {[%clk 0:00:06.5]}
59... Ke6 {[%clk 0:00:37.4]} 60. Qf8 {[%clk 0:00:06.3]} 60... Ke5 {[%clk
0:00:37.4]} 61. Qf2 {[%clk 0:00:06.4]} 61... Ke6 {[%clk 0:00:37.3]} 62. Qg2
{[%clk 0:00:04.1]} 62... Re5 {[%clk 0:00:36.9]} 63. Qg4+ {[%clk 0:00:04.4]}
63... Kf6 {[%clk 0:00:37.1]} 64. Qd4 {[%clk 0:00:04.5]} 64... Kf5 {[%clk
0:00:37]} 65. Qg4+ {[%clk 0:00:04.6]} 65... Kf6 {[%clk 0:00:37.2]} 66. Qd4
{[%clk 0:00:04.8]} 66... Kf5 {[%clk 0:00:37.6]} 67. Qg4+ {[%clk 0:00:04.9]}
67... Kf6 {[%clk 0:00:38]} 1/2-1/2

[Event "Late-Titled-Tuesday-Blitz-April-02-2024"]
[Site "Chess.com"]
[Date "2024.04.02"]
[Round "3"]
[White "MikeSailer"]
[Black "MarceloPlaya"]
[Result "0-1"]
[WhiteElo "2187"]
[BlackElo "2390"]
[TimeControl "180+1"]
[EndTime "14:28:08 PDT"]
[Termination "MarceloPlaya won on time"]

1. d4 {[%clk 0:03:00.3]} 1... e6 {[%clk 0:03:00.8]} 2. Nf3 {[%clk 0:02:59.7]}
2... Nf6 {[%clk 0:03:00.7]} 3. Bg5 {[%clk 0:03:00]} 3... d5 {[%clk 0:03:00]} 4.
e3 {[%clk 0:02:59.7]} 4... c5 {[%clk 0:02:59.9]} 5. c3 {[%clk 0:02:59]} 5... Nc6
{[%clk 0:02:59.8]} 6. Bd3 {[%clk 0:02:58.9]} 6... h6 {[%clk 0:03:00]} 7. Bh4
{[%clk 0:02:59]} 7... Be7 {[%clk 0:02:58.8]} 8. Nbd2 {[%clk 0:02:59.4]} 8... O-O
{[%clk 0:02:58.4]} 9. O-O {[%clk 0:02:59.7]} 9... Nd7 {[%clk 0:02:57.8]} 10. Bg3
{[%clk 0:02:58.3]} 10... b6 {[%clk 0:02:55.9]} 11. h3 {[%clk 0:02:54.9]} 11...
Bf6 {[%clk 0:02:56]} 12. Bh2 {[%clk 0:02:54.2]} 12... e5 {[%clk 0:02:55.5]} 13.
dxe5 {[%clk 0:02:54.4]} 13... Ndxe5 {[%clk 0:02:54.7]} 14. Nxe5 {[%clk
0:02:55.3]} 14... Nxe5 {[%clk 0:02:54.3]} 15. Bc2 {[%clk 0:02:53]} 15... Re8
{[%clk 0:02:52.1]} 16. Nf3 {[%clk 0:02:53.5]} 16... Ng6 {[%clk 0:02:45]} 17.
Bxg6 {[%clk 0:02:50.5]} 17... fxg6 {[%clk 0:02:44.2]} 18. Qc2 {[%clk 0:02:50.9]}
18... Bf5 {[%clk 0:02:40.3]} 19. Qa4 {[%clk 0:02:48.3]} 19... Be4 {[%clk
0:02:25.6]} 20. Rad1 {[%clk 0:02:36.8]} 20... Qc8 {[%clk 0:02:11.2]} 21. Nd2
{[%clk 0:02:33.4]} 21... Bd3 {[%clk 0:02:09.5]} 22. Rfe1 {[%clk 0:02:32.2]}
22... b5 {[%clk 0:02:05.3]} 23. Qa3 {[%clk 0:02:22.5]} 23... a5 {[%clk
0:01:56.2]} 24. Bd6 {[%clk 0:02:09.4]} 24... c4 {[%clk 0:01:47.8]} 25. Nf3
{[%clk 0:02:00.8]} 25... Qe6 {[%clk 0:01:28.7]} 26. Nd4 {[%clk 0:01:57.7]} 26...
Bxd4 {[%clk 0:01:22.7]} 27. exd4 {[%clk 0:01:57]} 27... Qf6 {[%clk 0:01:14.8]}
28. Qc5 {[%clk 0:01:53.1]} 28... Qf5 {[%clk 0:00:51.5]} 29. Re5 {[%clk 0:01:40]}
29... Rxe5 {[%clk 0:00:49.8]} 30. Bxe5 {[%clk 0:01:37.8]} 30... Qd7 {[%clk
0:00:46.5]} 31. Re1 {[%clk 0:01:31.8]} 31... Rc8 {[%clk 0:00:44.4]} 32. Qa3
{[%clk 0:01:28.4]} 32... Qd8 {[%clk 0:00:34.2]} 33. Bg3 {[%clk 0:01:10.4]} 33...
Qf8 {[%clk 0:00:31.2]} 34. Bd6 {[%clk 0:01:08.8]} 34... Qd8 {[%clk 0:00:28.9]}
35. Be7 {[%clk 0:00:58.7]} 35... Qd7 {[%clk 0:00:27.4]} 36. Bh4 {[%clk
0:00:54.3]} 36... g5 {[%clk 0:00:21.8]} 37. Bg3 {[%clk 0:00:48.4]} 37... Re8
{[%clk 0:00:18.8]} 38. Rxe8+ {[%clk 0:00:44.7]} 38... Qxe8 {[%clk 0:00:18.5]}
39. Qxa5 {[%clk 0:00:40.5]} 39... Qe1+ {[%clk 0:00:17.1]} 40. Kh2 {[%clk
0:00:40]} 40... Qe2 {[%clk 0:00:15.9]} 41. Qd8+ {[%clk 0:00:37.8]} 41... Kh7
{[%clk 0:00:15]} 42. Qxd5 {[%clk 0:00:35.8]} 42... Qxb2 {[%clk 0:00:13.8]} 43.
Qf7 {[%clk 0:00:04.9]} 43... Bg6 {[%clk 0:00:09.9]} 44. Be5 {[%clk 0:00:05.4]}
44... Bxf7 {[%clk 0:00:09]} 0-1

[Event "Late-Titled-Tuesday-Blitz-April-02-2024"]
[Site "Chess.com"]
[Date "2024.04.02"]
[Round "3"]
[White "Zavgorodniy_Sergiy"]
[Black "lilylg"]
[Result "0-1"]
[WhiteElo "2632"]
[BlackElo "2221"]
[TimeControl "180+1"]
[EndTime "14:28:10 PDT"]
[Termination "lilylg won by checkmate"]

1. d4 {[%clk 0:03:00.9]} 1... d5 {[%clk 0:02:59.6]} 2. c4 {[%clk 0:03:01.1]}
2... e6 {[%clk 0:03:00.1]} 3. Nf3 {[%clk 0:03:00.9]} 3... f5 {[%clk 0:02:59.9]}
4. g3 {[%clk 0:03:00.3]} 4... Nf6 {[%clk 0:03:00.1]} 5. Bg2 {[%clk 0:03:00.8]}
5... c6 {[%clk 0:02:58.9]} 6. O-O {[%clk 0:03:00.9]} 6... Bd6 {[%clk 0:02:59.5]}
7. b3 {[%clk 0:03:01.3]} 7... Qe7 {[%clk 0:02:58.5]} 8. a4 {[%clk 0:03:01.6]}
8... O-O {[%clk 0:02:57.8]} 9. Ba3 {[%clk 0:03:01.8]} 9... Bxa3 {[%clk
0:02:57.7]} 10. Nxa3 {[%clk 0:03:02.7]} 10... Bd7 {[%clk 0:02:47.4]} 11. Nc2
{[%clk 0:03:02.3]} 11... Be8 {[%clk 0:02:47.3]} 12. Nce1 {[%clk 0:03:01.3]}
12... Nbd7 {[%clk 0:02:45]} 13. Nd3 {[%clk 0:03:00.9]} 13... Bh5 {[%clk
0:02:42.8]} 14. Nfe5 {[%clk 0:03:01]} 14... Ne4 {[%clk 0:02:39.5]} 15. Qc2
{[%clk 0:02:58.2]} 15... a5 {[%clk 0:02:25.5]} 16. Nxd7 {[%clk 0:02:56.5]} 16...
Qxd7 {[%clk 0:02:24.4]} 17. Ne5 {[%clk 0:02:54.8]} 17... Qe7 {[%clk 0:02:20.7]}
18. f3 {[%clk 0:02:49.3]} 18... Nf6 {[%clk 0:02:12.5]} 19. e4 {[%clk 0:02:49.1]}
19... Bg6 {[%clk 0:02:01]} 20. exf5 {[%clk 0:02:41.3]} 20... Bxf5 {[%clk
0:01:59.2]} 21. Qc3 {[%clk 0:02:41.1]} 21... Qb4 {[%clk 0:01:53.1]} 22. Qe3
{[%clk 0:02:23.6]} 22... Bc2 {[%clk 0:01:43.6]} 23. Ng4 {[%clk 0:01:56.7]} 23...
Rae8 {[%clk 0:01:42.7]} 24. Nxf6+ {[%clk 0:01:54.5]} 24... Rxf6 {[%clk
0:01:38.4]} 25. cxd5 {[%clk 0:01:53.3]} 25... cxd5 {[%clk 0:01:24.7]} 26. Rfc1
{[%clk 0:01:49]} 26... Qxb3 {[%clk 0:01:22.6]} 27. Qxb3 {[%clk 0:01:48.4]} 27...
Bxb3 {[%clk 0:01:23.5]} 28. Rcb1 {[%clk 0:01:47.2]} 28... Bc2 {[%clk 0:01:13.8]}
29. Rxb7 {[%clk 0:01:47.1]} 29... Rf7 {[%clk 0:01:14]} 30. Rxf7 {[%clk
0:01:42.2]} 30... Kxf7 {[%clk 0:01:14.9]} 31. Rc1 {[%clk 0:01:42.3]} 31... Bxa4
{[%clk 0:01:13.4]} 32. Ra1 {[%clk 0:01:42.4]} 32... Bb3 {[%clk 0:01:05.4]} 33.
Rxa5 {[%clk 0:01:42.3]} 33... Rc8 {[%clk 0:01:04.8]} 34. Bh3 {[%clk 0:01:25.6]}
34... Rc1+ {[%clk 0:01:03.3]} 35. Kf2 {[%clk 0:01:25.1]} 35... Rc2+ {[%clk
0:00:52]} 36. Kg1 {[%clk 0:01:24.6]} 36... Rc1+ {[%clk 0:00:48.6]} 37. Kf2
{[%clk 0:01:24.4]} 37... Rc2+ {[%clk 0:00:49]} 38. Ke3 {[%clk 0:01:08.6]} 38...
Bc4 {[%clk 0:00:38.7]} 39. Ra7+ {[%clk 0:01:02.3]} 39... Kf6 {[%clk 0:00:36.6]}
40. f4 {[%clk 0:00:52.4]} 40... Re2+ {[%clk 0:00:28.3]} 41. Kf3 {[%clk 0:00:52]}
41... Rxh2 {[%clk 0:00:25.8]} 42. Bg4 {[%clk 0:00:42.9]} 42... Be2+ {[%clk
0:00:24.6]} 43. Ke3 {[%clk 0:00:39.4]} 43... Bxg4 {[%clk 0:00:24.8]} 44. Ra8
{[%clk 0:00:39]} 44... Re2+ {[%clk 0:00:21.1]} 45. Kd3 {[%clk 0:00:38.8]} 45...
Rg2 {[%clk 0:00:21.2]} 46. Rf8+ {[%clk 0:00:38.1]} 46... Ke7 {[%clk 0:00:21.3]}
47. Rg8 {[%clk 0:00:36.8]} 47... Rxg3+ {[%clk 0:00:21.6]} 48. Kd2 {[%clk
0:00:37.4]} 48... Bf5 {[%clk 0:00:22.5]} 49. Rh8 {[%clk 0:00:36.8]} 49... Rf3
{[%clk 0:00:21.9]} 50. Rg8 {[%clk 0:00:34.2]} 50... Kf7 {[%clk 0:00:22.3]} 51.
Rd8 {[%clk 0:00:34.2]} 51... Rxf4 {[%clk 0:00:22.8]} 52. Rd7+ {[%clk 0:00:34.1]}
52... Kf6 {[%clk 0:00:23.3]} 53. Ke3 {[%clk 0:00:34.1]} 53... Re4+ {[%clk
0:00:23.7]} 54. Kd3 {[%clk 0:00:34.7]} 54... h5 {[%clk 0:00:20.8]} 55. Rd8
{[%clk 0:00:34.7]} 55... h4 {[%clk 0:00:20.7]} 56. Rf8+ {[%clk 0:00:34.9]} 56...
Kg6 {[%clk 0:00:20.1]} 57. Rh8 {[%clk 0:00:35.1]} 57... h3 {[%clk 0:00:19.7]}
58. Kc3 {[%clk 0:00:35.3]} 58... Re3+ {[%clk 0:00:19.3]} 59. Kd2 {[%clk
0:00:35.3]} 59... Rd3+ {[%clk 0:00:19.1]} 60. Ke2 {[%clk 0:00:35.5]} 60... Rxd4
{[%clk 0:00:19.5]} 61. Kf3 {[%clk 0:00:36]} 61... Rd2 {[%clk 0:00:17.3]} 62. Kg3
{[%clk 0:00:35.6]} 62... h2 {[%clk 0:00:17.6]} 63. Kf4 {[%clk 0:00:33.6]} 63...
Rd4+ {[%clk 0:00:17]} 64. Ke3 {[%clk 0:00:33.5]} 64... Rd3+ {[%clk 0:00:17]} 65.
Ke2 {[%clk 0:00:33.9]} 65... Rh3 {[%clk 0:00:16.4]} 66. Rc8 {[%clk 0:00:32.2]}
66... h1=Q {[%clk 0:00:16.4]} 67. Kd2 {[%clk 0:00:32]} 67... Qg2+ {[%clk
0:00:16.4]} 68. Kc1 {[%clk 0:00:32.3]} 68... Rh1# {[%clk 0:00:16.8]} 0-1

[Event "Late-Titled-Tuesday-Blitz-April-02-2024"]
[Site "Chess.com"]
[Date "2024.04.02"]
[Round "3"]
[White "CarlosjPineror"]
[Black "kleber2007"]
[Result "1-0"]
[WhiteElo "2682"]
[BlackElo "2483"]
[TimeControl "180+1"]
[EndTime "14:28:11 PDT"]
[Termination "CarlosjPineror won on time"]

1. e4 {[%clk 0:03:00.9]} 1... c6 {[%clk 0:02:58.2]} 2. d3 {[%clk 0:02:58.4]}
2... d5 {[%clk 0:02:58.3]} 3. Nd2 {[%clk 0:02:59.3]} 3... e5 {[%clk 0:02:57.4]}
4. Ngf3 {[%clk 0:02:59.3]} 4... Bd6 {[%clk 0:02:56.8]} 5. g3 {[%clk 0:02:54.7]}
5... Nf6 {[%clk 0:02:55]} 6. Bg2 {[%clk 0:02:54.8]} 6... O-O {[%clk 0:02:52.8]}
7. O-O {[%clk 0:02:55.3]} 7... Nbd7 {[%clk 0:02:51.2]} 8. Re1 {[%clk 0:02:55.1]}
8... dxe4 {[%clk 0:02:49.7]} 9. dxe4 {[%clk 0:02:53.3]} 9... Qe7 {[%clk
0:02:49.5]} 10. c3 {[%clk 0:02:52.9]} 10... a5 {[%clk 0:02:49.1]} 11. Nc4 {[%clk
0:02:47.7]} 11... Bc7 {[%clk 0:02:44.3]} 12. Nh4 {[%clk 0:02:47.2]} 12... Nb6
{[%clk 0:02:35.3]} 13. Ne3 {[%clk 0:02:31.3]} 13... g6 {[%clk 0:02:33.5]} 14.
Qc2 {[%clk 0:02:08.1]} 14... Rd8 {[%clk 0:02:31.9]} 15. Nf1 {[%clk 0:02:07.3]}
15... Kg7 {[%clk 0:02:23.1]} 16. h3 {[%clk 0:02:06.3]} 16... a4 {[%clk
0:02:16.5]} 17. Bg5 {[%clk 0:01:45.8]} 17... h6 {[%clk 0:02:15.6]} 18. Be3
{[%clk 0:01:26.2]} 18... Nc4 {[%clk 0:02:14.3]} 19. Bc1 {[%clk 0:01:26]} 19...
Be6 {[%clk 0:02:12]} 20. Rb1 {[%clk 0:01:23.5]} 20... Qd7 {[%clk 0:01:52.5]} 21.
Kh2 {[%clk 0:01:20.1]} 21... Qd3 {[%clk 0:01:51.5]} 22. Qxd3 {[%clk 0:01:16.3]}
22... Rxd3 {[%clk 0:01:50.8]} 23. Ra1 {[%clk 0:01:10.9]} 23... Rad8 {[%clk
0:01:37.9]} 24. Ne3 {[%clk 0:01:10.1]} 24... Bb6 {[%clk 0:01:33.8]} 25. Bf1
{[%clk 0:01:04.5]} 25... Nxe3 {[%clk 0:01:28.2]} 26. Bxe3 {[%clk 0:00:59.1]}
26... Bxe3 {[%clk 0:01:22.4]} 27. Bxd3 {[%clk 0:00:59]} 27... Rxd3 {[%clk
0:01:15.2]} 28. Rxe3 {[%clk 0:00:52.5]} 28... Rd2 {[%clk 0:01:15.3]} 29. Kg1
{[%clk 0:00:48.1]} 29... Rxb2 {[%clk 0:01:14.9]} 30. a3 {[%clk 0:00:47.9]} 30...
Nd7 {[%clk 0:01:11]} 31. g4 {[%clk 0:00:40.6]} 31... Nb6 {[%clk 0:01:09.1]} 32.
Nf3 {[%clk 0:00:37]} 32... Nc4 {[%clk 0:01:08.2]} 33. Rd3 {[%clk 0:00:35.5]}
33... Rb3 {[%clk 0:01:05.6]} 34. Kg2 {[%clk 0:00:20.6]} 34... Kf6 {[%clk
0:01:00.7]} 35. Kg3 {[%clk 0:00:14.4]} 35... b5 {[%clk 0:00:59.9]} 36. h4 {[%clk
0:00:14.2]} 36... g5 {[%clk 0:00:58.4]} 37. hxg5+ {[%clk 0:00:13.9]} 37... hxg5
{[%clk 0:00:59.3]} 38. Rh1 {[%clk 0:00:09.9]} 38... Rxa3 {[%clk 0:00:56.1]} 39.
Rh8 {[%clk 0:00:07.6]} 39... Rb3 {[%clk 0:00:50.5]} 40. Rg8 {[%clk 0:00:07]}
40... a3 {[%clk 0:00:49.5]} 41. Nxg5 {[%clk 0:00:04.6]} 41... a2 {[%clk
0:00:48.2]} 42. Rdd8 {[%clk 0:00:05.2]} 42... Rxc3+ {[%clk 0:00:40.7]} 43. Kh4
{[%clk 0:00:04.3]} 43... Bd7 {[%clk 0:00:09.2]} 44. Rxd7 {[%clk 0:00:03.1]}
44... Nd6 {[%clk 0:00:06.8]} 45. Rxd6+ {[%clk 0:00:02.7]} 45... Ke7 {[%clk
0:00:06.9]} 46. Rgd8 {[%clk 0:00:03.4]} 46... a1=Q {[%clk 0:00:05.8]} 47. R8d7+
{[%clk 0:00:04.1]} 47... Ke8 {[%clk 0:00:06]} 48. Nxf7 {[%clk 0:00:03.3]} 48...
Qh1+ {[%clk 0:00:05]} 49. Kg5 {[%clk 0:00:03.8]} 49... Rf3 {[%clk 0:00:03.8]}
50. Nxe5 {[%clk 0:00:02.6]} 1-0